Cogmind - Beta 10.2 *** ADVENTURER MODE // 2022.01.27 @ 02:18:57 Player: shisihs Result: Destroyed by G-47 Trooper with Particle Gun Performance ------------- Evolutions (3) 1500 Regions Visited (6) 1200 Robots Destroyed (72) 360 Value Destroyed (2500) 2500 Prototype IDs (4) 80 Alien Tech Used (0) 0 Bonus (406) 406 TOTAL SCORE: 6046 Bonus ------- Follower Combat Kills 420 Friendly Fire -14 Cogmind --------- Core Integrity 0/700 Matter 215/300 Energy 57/100 System Corruption 6% Temperature Cool (9) Movement Core (900) Ox17 Location -7/Lower Caves Parts ------- > --- POWER (2) -------- (None) > --- PROPULSION (3) --- (None) > --- UTILITY (6) ------ Large Storage Unit Large Storage Unit Large Storage Unit Advanced Signal Interpreter > --- WEAPON (2) ------- Mini Assault Cannon > --- INVENTORY (22) --- Nuclear Core Aluminum Leg Carbon-fiber Leg Xenon Bombardment Thruster Medium Storage Unit Long-range Terrain Scanner Improved Field Recycling Unit (0) Pulse Rifle Heavy Ion Cannon Heavy Ion Cannon Autogun High-powered Shotgun Gauss Rifle Flak Gun Improved Proton Missile Launcher Improved Proton Missile Launcher Power Maul Peak State ------------ > --- POWER ------------ Heavy Ion Engine Improved Deuterium Engine > --- PROPULSION ------- Aluminum Leg Improved Aluminum Leg Carbon-fiber Leg > --- UTILITY ---------- Large Storage Unit Large Storage Unit Large Storage Unit Advanced Signal Interpreter Improved Propulsion Shielding Shock Absorption System > --- WEAPON ----------- Cooled Pulse Rifle Mini Assault Cannon > --- INVENTORY -------- Light Ion Engine Nuclear Core Aluminum Leg Carbon-fiber Leg Xenon Bombardment Thruster Xenon Bombardment Thruster Xenon Bombardment Thruster Xenon Bombardment Thruster Medium Storage Unit Long-range Terrain Scanner Improved Field Recycling Unit Pulse Rifle Heavy Ion Cannon Heavy Ion Cannon Autogun High-powered Shotgun Gauss Rifle Flak Gun Improved Proton Missile Launcher Improved Proton Missile Launcher Power Maul [Rating: 43] Favorites ----------- Power Light Ion Engine Engine Light Ion Engine Power Core Light Nuclear Core Propulsion Aluminum Leg Leg Aluminum Leg Flight Unit Xenon Bombardment Thruster Utility Large Storage Unit Device Shock Absorption System Storage Large Storage Unit Processor Improved Terrain Scan Processor Protection Improved Propulsion Shielding Weapon Light Assault Rifle Energy Gun Electrolaser Ballistic Gun Light Assault Rifle Ballistic Cannon Mini Assault Cannon Special Weapon Plasma Cutter Impact Weapon Mace Build | -11 -10 -9 -8 -8 -7 -7 ------- Run | Scr Mat Mat Mat Sto Fac Low Slots Evolved 6 | . . 2 2 . 2 . Power 1 | . . . 1 . . . Propulsion 1 | . . . . . 1 . Utility 4 | . . 2 1 . 1 . Weapon . | . . . . . . . Parts Attached 79 | 6 8 11 14 13 19 8 Power 14 | 1 . 1 3 3 5 1 Engine 9 | 1 . 1 1 1 4 1 Core 5 | . . . 2 2 1 . Reactor . | . . . . . . . Propulsion 21 | 2 1 4 4 4 2 4 Treads . | . . . . . . . Leg 18 | 2 1 4 4 4 2 1 Wheel . | . . . . . . . Hover . | . . . . . . . Flight 3 | . . . . . . 3 Utility 23 | 1 4 3 5 2 8 . Device 4 | . . 2 . . 2 . Storage 7 | 1 4 . 1 . 1 . Processor 4 | . . 1 . 2 1 . Hackware . | . . . . . . . Protection 8 | . . . 4 . 4 . Artifact . | . . . . . . . Weapon 21 | 2 3 3 2 4 4 3 Energy Gun 6 | . 1 . . 2 1 2 Energy Cannon . | . . . . . . . Ballistic Gun 9 | 2 1 2 2 1 1 . Ballistic Cannon 4 | . . . . 1 2 1 Launcher . | . . . . . . . Special Weapon 1 | . . 1 . . . . Impact Weapon 1 | . 1 . . . . . Slashing Weapon . | . . . . . . . Piercing Weapon . | . . . . . . . Special Melee Weapon . | . . . . . . . Unidentified Prototypes 4 | . . . 1 1 2 . Parts Lost 34 | . 1 6 2 8 5 12 Power 8 | . . 1 1 3 . 3 Propulsion 8 | . . 2 . 1 . 5 Utility 9 | . . 2 . 2 3 2 Weapon 9 | . 1 1 1 2 2 2 Highest Loss Streak 12 | . 1 4 1 4 3 12 Average Slot Usage (%) 95 | . 96 93 93 96 96 96 Engine 10 | . 14 9 6 7 8 14 Core 3 | . . . 6 9 5 . Leg 21 | . 28 19 18 17 21 21 Device 2 | . . 15 . . . 6 Storage 21 | . 25 22 18 18 23 23 Processor 6 | . . 4 9 16 4 7 Protection 8 | . . . 18 9 16 6 Energy Gun 3 | . . . . 7 3 6 Ballistic Gun 9 | . 23 10 13 6 . . Ballistic Cannon 3 | . . . . 3 9 6 Impact Weapon 2 | . 2 11 3 . . . Naked Turns . | . . . . . . . Heaviest Build 85 | 11 40 42 55 55 85 81 Greatest Support 38 | 3 20 20 30 30 38 38 Greatest Overweight (x) 17 | 3 3 12 3 2 3 17 Average Overweight (x) 1 | 1 . 2 1 1 1 2 Largest Inventory Capacity 22 | 6 16 16 16 16 22 22 Average Capacity 17 | 5 11 16 16 16 21 22 Most Carried 22 | 6 16 16 16 16 22 22 Average Carried 16 | 2 10 15 15 15 19 20 Final Capacity 22 | 6 16 16 16 16 22 22 Final Carried 19 | 4 16 16 16 16 19 17 Class Distribution -------------------- 37% | Hauler-Mutant 36% | Mutant 13% | Commander-Mutant 12% | Scavenger-Mutant Dominant Class ---------------- Mutant | -10/Materials Mutant | -9/Materials Scavenger-Mutant | -8/Materials Commander-Mutant | -8/Storage Hauler-Mutant | -7/Factory Hauler-Mutant | -7/Lower Caves Resources | -11 -10 -9 -8 -8 -7 -7 ----------- Run | Scr Mat Mat Mat Sto Fac Low Matter Collected 1890 | 196 225 255 333 311 435 135 Remotely . | . . . . . . . Salvage Created 2685 | . 402 477 490 579 573 164 Parts 155 | . 31 31 25 34 26 8 Haulers Intercepted . | . . . . . . . Recyclers Shooed 3 | . 2 . . 1 . . Parts Field Recycled . | . . . . . . . Retrieved Matter . | . . . . . . . Parts Self-Destructed 12 | . . . . . . 12 Prevented . | . . . . . . . Kills | -11 -10 -9 -8 -8 -7 -7 ------- Run | Scr Mat Mat Mat Sto Fac Low Combat Hostiles Destroyed 65 | . 14 9 9 14 16 3 Guns 50 | . 14 8 9 13 4 2 Cannons 14 | . . 1 . 1 11 1 Classes Destroyed 9 | . 3 2 1 . 3 . Mechanic 1 | . . . . . 1 . Watcher 6 | . 1 1 1 2 1 . Swarmer 19 | . 8 . . 6 5 . Grunt 29 | . 6 6 6 4 5 2 Brawler 1 | . . . . . 1 . Duelist 2 | . . 1 . . . 1 Sentry 9 | . . 2 2 4 1 . Hunter 3 | . . . 1 . 2 . Programmer 2 | . . . . . 2 . Best Kill Streak 6 | . 4 2 3 6 4 2 Combat Bots Only 6 | . 4 2 3 6 4 2 Max Kills in Single Turn 2 | . 1 1 1 2 1 1 Gunslinging 1 | . . . . 1 . . Exploded . | . . . . . . . Melee . | . . . . . . . Uniques/NPCs Destroyed . | . . . . . . . Combat | -11 -10 -9 -8 -8 -7 -7 -------- Run | Scr Mat Mat Mat Sto Fac Low Damage Taken 5753 | . 392 514 828 871 1779 1369 Core 1070 | . 46 115 89 112 264 444 Absorbed by Shields . | . . . . . . . Core Remaining (%) 78 | 100 81 71 . 63 . . Volleys Fired 278 | . 53 50 65 49 48 13 Largest 2 | . 2 1 2 2 2 2 Hottest 160 | . 40 23 48 111 111 160 Shots Fired 405 | . 91 50 83 72 85 24 Gun 333 | . 91 47 83 64 37 11 Cannon 69 | . . . . 8 48 13 Launcher . | . . . . . . . Special 3 | . . 3 . . . . Kinetic 346 | . 91 47 83 51 61 13 Thermal 59 | . . 3 . 21 24 11 Explosive . | . . . . . . . Electromagnetic . | . . . . . . . Robot Hit Streak 24 | . 18 12 22 17 22 24 Robot Miss Streak 3 | . 2 2 2 2 3 1 Penetration Max . | . . . . . . . Secondary Targets 6 | . 3 . . 3 . . Max Gunslinging Chain 1 | . 1 . . 1 . . Shots Hit Robots 324 | . 71 44 71 53 68 17 Core Hits 132 | . 28 20 24 24 27 9 Critical Hits 7 | . 2 . 2 1 1 1 Critical Kills 2 | . 1 . 1 . . . Critical Parts Destroyed 4 | . 1 . 1 . 1 1 Melee Attacks 2 | . . 2 . . . . Impact 2 | . . 2 . . . . Slashing . | . . . . . . . Piercing . | . . . . . . . Sneak Attacks . | . . . . . . . Combat Hostiles . | . . . . . . . Follow-up Attacks . | . . . . . . . Damage Inflicted 5161 | . 571 594 1062 957 1542 435 Guns 3834 | . 537 561 1062 832 645 197 Cannons 1236 | . . . . 104 894 238 Explosions . | . . . . . . . Melee 11 | . . 11 . . . . Ramming 58 | . 34 . . 21 3 . Kinetic 4208 | . 537 561 1062 647 1163 238 Thermal 884 | . . 22 . 289 376 197 Explosive . | . . . . . . . Electromagnetic . | . . . . . . . Impact 11 | . . 11 . . . . Slashing . | . . . . . . . Piercing . | . . . . . . . Highest Corruption 6 | . . 1 . . 6 6 Average Corruption 3 | . . 1 . . 2 6 Corruption Purged . | . . . . . . . Effects 38 | . . 2 . . 16 20 Message Errors 8 | . . 1 . . 3 4 Matter Fused 6 | . . . . . 2 4 Heat Flow Errors 9 | . . . . . 5 4 Energy Discharges 1 | . . . . . 1 . Parts Rejected 1 | . . . . . 1 . Data Loss (minor) 4 | . . . . . . 4 Data Loss (major) 2 | . . . . . . 2 Misfires 2 | . . . . . . 2 Targeting Errors 3 | . . 1 . . 2 . Weapon Failures 2 | . . . . . 2 . Overload Shots . | . . . . . . . Overflow Damage 30 | . . . . . 30 . Projectiles 30 | . . . . . 30 . Explosions . | . . . . . . . Melee . | . . . . . . . Knockbacks 9 | . . . . . 7 2 Impact . | . . . . . . . Kinetic 9 | . . . . . 7 2 Secondary . | . . . . . . . Self-Inflicted Damage 18 | . 11 . . 6 1 . Shots . | . . . . . . . Rammed 9 | . 3 . . 4 2 . Targets Rammed 11 | . 4 . . 5 2 . Kicked 2 | . 1 . . 1 . . Crushed . | . . . . . . . Highest Temperature 535 | . 12 9 383 224 535 471 Average Temperature 120 | . 6 6 123 79 127 181 Received Heat Transfer 1833 | . 99 267 432 252 375 408 Effects 17 | . . . . . 13 4 Shutdowns 8 | . . . . . 4 4 Energy Bleed 3 | . . . . . 3 . Interference 4 | . . . . . 4 . Short Circuit 1 | . . . . . 1 . Damage (core) 1 | . . . . . 1 . Siege Activations . | . . . . . . . Robots Corrupted . | . . . . . . . Combat Hostiles . | . . . . . . . Parts Fried . | . . . . . . . Impact Corruptions . | . . . . . . . Robots Melted . | . . . . . . . Combat Hostiles . | . . . . . . . Parts Melted 3 | . . . . 3 . . Heat Transferred 1739 | . . 74 . 629 740 296 Parts Sabotaged . | . . . . . . . Parts Stolen . | . . . . . . . Parts Stripped . | . . . . . . . Power Chain Reactions . | . . . . . . . Missiles Intercepted . | . . . . . . . Alert | -11 -10 -9 -8 -8 -7 -7 ------- Run | Scr Mat Mat Mat Sto Fac Low Peak Influence 328 | . 200 102 197 328 205 . Initial 36 | . . 6 36 30 . . Average 72 | . 89 49 66 95 56 . Maximum Alert Level 1 | . 1 . . 1 1 . Low Security (%) 94 | 100 86 100 100 89 98 . Level 1 5 | . 13 . . 10 1 . Level 2 . | . . . . . . . Level 3 . | . . . . . . . Level 4 . | . . . . . . . Level 5 . | . . . . . . . High Security . | . . . . . . . Max Security . | . . . . . . . Squads Dispatched 14 | . 2 . . 6 6 . Investigation 6 | . 2 . . 3 1 . Extermination 3 | . . . . . 3 . Reinforcement 3 | . . . . 1 2 . Assault . | . . . . . . . Garrison 2 | . . . . 2 . . Intercept . | . . . . . . . Construction Impeded . | . . . . . . . Haulers Reinforced . | . . . . . . . Stealth | -11 -10 -9 -8 -8 -7 -7 --------- Run | Scr Mat Mat Mat Sto Fac Low Distress Signals 4 | . . 1 . 3 . . Communications Jammed . | . . . . . . . Distress Signals . | . . . . . . . Times Spotted 113 | . 25 11 13 31 22 11 Peak Tracking Total 8 | . 4 3 6 7 5 8 Tactical Retreats 11 | . 3 1 1 2 3 1 Traps | -11 -10 -9 -8 -8 -7 -7 ------- Run | Scr Mat Mat Mat Sto Fac Low Traps Triggered 11 | . 3 1 . 1 6 . Indirectly . | . . . . . . . Trap Hack Attempts . | . . . . . . . Triggered . | . . . . . . . Disarmed . | . . . . . . . Reprogrammed . | . . . . . . . Reused . | . . . . . . . Traps Extracted . | . . . . . . . Installed . | . . . . . . . Triggered . | . . . . . . . Machines | -11 -10 -9 -8 -8 -7 -7 ---------- Run | Scr Mat Mat Mat Sto Fac Low Machines Disabled 1 | . . . . 1 . . Max in Single Turn . | . . . . . . . Machines Sabotaged . | . . . . . . . Garrisons Compromised . | . . . . . . . Overloaded Fab Kills . | . . . . . . . Fab Network Shutdowns . | . . . . . . . Hacking | -11 -10 -9 -8 -8 -7 -7 --------- Run | Scr Mat Mat Mat Sto Fac Low Machines Accessed 23 | . 6 3 2 6 5 1 Terminals 14 | . 4 . 2 6 2 . Fabricators 1 | . . . . . 1 . Repair Stations 2 | . . 1 . . 1 . Recycling Units 4 | . 2 1 . . 1 . Scanalyzers 1 | . . 1 . . . . Garrison Access . | . . . . . . . Total Hacks 50 | . 12 11 3 14 9 1 Successful 33 | . 9 8 2 7 6 1 Failed 17 | . 3 3 1 7 3 . Catastrophic 2 | . . . . 1 1 . Database Lockouts . | . . . . . . . Manual 3 | . 2 . 1 . . . Terminals 25 | . 6 . 3 14 2 . Fabricators 3 | . . . . . 3 . Repair Stations 7 | . . 5 . . 2 . Recycling Units 10 | . 6 2 . . 2 . Scanalyzers 4 | . . 4 . . . . Garrison Access . | . . . . . . . Terminal Hacks 15 | . 3 . 2 7 2 1 Open Door 2 | . . . . 1 . 1 Branch Access Points 1 | . . . . 1 . . Emergency Access Points 1 | . . . . . 1 . Unreport Threat 5 | . . . 1 4 . . Locate Traps 1 | . . . . . 1 . Dispatch Records 1 | . 1 . . . . . Zone Layout 4 | . 2 . 1 1 . . Fabricator Hacks . | . . . . . . . Repair Station Hacks 6 | . . 4 . . 2 . Scan Component 3 | . . 2 . . 1 . Repair 3 | . . 2 . . 1 . Recycling Unit Hacks 10 | . 6 2 . . 2 . Recycle Component 1 | . 1 . . . . . Process 1 | . 1 . . . . . Report Inventory 2 | . . 1 . . 1 . Retrieve Matter 4 | . 4 . . . . . Retrieve Components 2 | . . 1 . . 1 . Scanalyzer 2 | . . 2 . . . . Insert Component 1 | . . 1 . . . . Analyze 1 | . . 1 . . . . Garrison Access Hacks . | . . . . . . . Unauthorized Hacks . | . . . . . . . Terminals . | . . . . . . . Fabricators . | . . . . . . . Repair Stations . | . . . . . . . Recycling Units . | . . . . . . . Scanalyzers . | . . . . . . . Garrison Access . | . . . . . . . Data Cores Recovered . | . . . . . . . Used . | . . . . . . . Hacking Detections 14 | . 3 1 1 5 4 . Full Trace Events 4 | . 1 . . 2 1 . Feedback Events . | . . . . . . . Feedback Blocked . | . . . . . . . Robot Schematics Acquired . | . . . . . . . Robots Built . | . . . . . . . Matter . | . . . . . . . Time . | . . . . . . . Total Robot Build Rating . | . . . . . . . Part Schematics Acquired 1 | . . 1 . . . . Parts Built . | . . . . . . . Matter . | . . . . . . . Time . | . . . . . . . Total Part Build Rating . | . . . . . . . Parts Repaired 3 | . . 2 . . 1 . Time 90 | . . 52 . . 38 . Parts Recycled 1 | . 1 . . . . . Recycled Matter 25 | . 25 . . . . . Retrieved Matter 25 | . 25 . . . . . Retrieved Components 6 | . . 3 . . 3 . Parts Scanalyzed 1 | . . 1 . . . . Part Schematics Acquired 1 | . . 1 . . . . Parts Damaged . | . . . . . . . Bothacking | -11 -10 -9 -8 -8 -7 -7 ------------ Run | Scr Mat Mat Mat Sto Fac Low Used RIF Installer . | . . . . . . . Robots Hacked . | . . . . . . . Non-combat . | . . . . . . . Combat . | . . . . . . . Robot Hacks Applied . | . . . . . . . Relay Couplers Released . | . . . . . . . Robots Rewired . | . . . . . . . Allies Hacked . | . . . . . . . Hacks Repelled . | . . . . . . . Allies | -11 -10 -9 -8 -8 -7 -7 -------- Run | Scr Mat Mat Mat Sto Fac Low Total Allies 10 | . . . . 10 . . Largest Group 10 | . . . . 10 . . Highest-Rated Group 173 | . . . . 173 . . Highest-Rated Ally 29 | . . . . 29 . . Total Orders 1 | . . . . 1 . . GUARD 1 | . . . . 1 . . Ally Attacks 96 | . . . . 96 . . Total Damage 1288 | . . . . 1288 . . Kills 13 | . . . . 13 . . Allies Corrupted . | . . . . . . . Allies Melted . | . . . . . . . Intel | -11 -10 -9 -8 -8 -7 -7 ------- Run | Scr Mat Mat Mat Sto Fac Low Robot Analysis Total . | . . . . . . . Derelict Logs Recovered 1 | . . . . . . 1 Drone Launches . | . . . . . . . Drone Recoveries . | . . . . . . . Exploration | -11 -10 -9 -8 -8 -7 -7 ------------- Run | Scr Mat Mat Mat Sto Fac Low Turns Passed 6048 | 67 1272 682 575 1209 1516 727 Spaces Moved 3011 | 39 757 263 245 626 716 365 Core 100 | 39 53 7 . . . 1 Treads . | . . . . . . . Legs 2910 | . 704 256 245 626 716 363 Wheels . | . . . . . . . Hover . | . . . . . . . Flight 1 | . . . . . . 1 Fastest Speed 50 | 50 120 150 150 150 150 150 Average Speed 162 | 134 140 188 167 150 175 181 Slowest Speed 900 | 200 200 650 210 180 210 900 Overloaded Moves . | . . . . . . . Propulsion Burnouts . | . . . . . . . Robots Hopped . | . . . . . . . Cave-ins Triggered . | . . . . . . . Exploration Rate (%) 43 | 4 89 18 25 83 23 60 Regions Visited 6 Branch Regions 2 Pre-discovered Areas . | . . . . . . . Known Exits Taken 1 | . . . . . 1 . Unknown Exits Taken 5 | 1 1 1 1 1 . . Scrap Searched . | . . . . . . . Spaces Dug . | . . . . . . . Terrain Destroyed 10 | . . . . 3 4 3 Melee . | . . . . . . . Projectile 10 | . . . . 3 4 3 AOE . | . . . . . . . Terrain Rammed . | . . . . . . . Walls Destroyed . | . . . . . . . Machines Disabled . | . . . . . . . Actions | -11 -10 -9 -8 -8 -7 -7 --------- Run | Scr Mat Mat Mat Sto Fac Low Total 3826 | 54 894 399 351 833 888 407 Wait 325 | . 42 65 11 132 59 16 Move 3005 | 38 756 262 244 625 715 365 Hop . | . . . . . . . Pick Up 73 | 10 21 7 7 3 22 3 Fast Attach 15 | . 2 3 4 4 2 . Attach 36 | 6 2 6 4 2 11 5 Detach 1 | . . . . . 1 . Swap 28 | . 4 2 6 7 6 3 Drop 42 | . 10 2 10 6 12 2 Fire 278 | . 53 50 65 49 48 13 Melee 2 | . . 2 . . . . Ram . | . . . . . . . Kick 11 | . 4 . . 5 2 . Crush . | . . . . . . . Escape Stasis 10 | . . . . . 10 . Rewire . | . . . . . . . Trap . | . . . . . . . Miscellaneous . | . . . . . . . Route ------- -11/Scrapyard -10/Materials (discovered 4 exits: *Mat x3 / [*Min]) -9/Materials -8/Materials -8/Storage (discovered 2 exits: *Fac / Rec) -7/Factory -7/Lower Caves History --------- Turn | Location | Event 12 | -11/Scrapyard | Discovered new exit (range 16) 68 | -11/Scrapyard | Entered Materials 223 | -10/Materials | Discovered new exit (range 16) 314 | -10/Materials | Build established: Mutant 431 | -10/Materials | Discovered new exit (range 15) 814 | -10/Materials | Discovered new exit (range 15) 1192 | -10/Materials | Discovered new exit (range 10) 1340 | -10/Materials | Entered another Materials area 1340 | -9/Materials | Evolved 2 slots: Utility x2 1552 | -9/Materials | Lost 4 parts (1p2n1w) 1863 | -9/Materials | Discovered new exit (range 15) 1982 | -9/Materials | Repaired Aluminum Leg 2010 | -9/Materials | Repaired Aluminum Leg 2022 | -9/Materials | Entered another Materials area 2022 | -8/Materials | Evolved 2 slots: Power x1, Utility x1 2320 | -8/Materials | Build established: Scavenger-Mutant 2533 | -8/Materials | Discovered new exit (range 8) 2597 | -8/Materials | Entered Storage 2864 | -8/Storage | Lost 4 parts (1p1n1u1w) 2923 | -8/Storage | Assisted by bots powering up and referring to "LRC-V3" 3230 | -8/Storage | Build established: Commander-Mutant 3503 | -8/Storage | Identified exit to Recycling 3645 | -8/Storage | Garrison activated, responded to threat 3784 | -8/Storage | Discovered new exit (range 16) 3806 | -8/Storage | Entered Factory 3806 | -7/Factory | Evolved 2 slots: Propulsion x1, Utility x1 3865 | -7/Factory | Repaired Carbon-fiber Leg 4111 | -7/Factory | Build established: Hauler-Mutant 5159 | -7/Factory | Lost 3 parts (3u) 5283 | -7/Factory | Discovered new exit (range 16) 5318 | -7/Factory | Identified exit to Lower Caves 5322 | -7/Factory | Entered Lower Caves 5942 | -7/Lower Caves | Learned Factory emergency access door positions 5967 | -7/Lower Caves | Spotted B-75 Beast 6014 | -7/Lower Caves | Attracted the attention of an 0b10 outpost 6020 | -7/Lower Caves | Core integrity fell below 50% 6042 | -7/Lower Caves | Core integrity fell below 20% 6049 | -7/Lower Caves | Destroyed by G-47 Trooper with Particle Gun Last Messages --------------- 06026_ Slug penetrates L-41 Fighter. 06026_ L-41 Fighter destroyed. 06026_ Dropped Carbon-fiber Leg. 06029_ Penetrated by Slug. 06032_ Lgt. Ion Engine destroyed. 06033_ L-41 Fighter destroyed. 06034_ Xenon Bombardment Thruster destroyed. 06034_ Penetrated by Slug. 06035_ Microactuators fries itself beyond repair. 06036_ System corrupted: Matter fused (-8). 06037_ Penetrated by Slug. 06038_ Carbon-fiber Leg fries itself beyond repair. 06039_ Xenon Bombardment Thruster destroyed. 06040_ Core Shielding fries itself beyond repair. 06043_ Axe fries itself beyond repair. 06044_ Carbon-fiber Leg fries itself beyond repair. 06044_ Slug penetrates Wall. 06047_ Penetrated by Slug. 06049_ Axe fries itself beyond repair. [Achievement: Just Browsing] Map ----- +----------------------------------------------------+ | | | | | ?????????????????????????????????????????????????? | | ?????????????????????????????????????????????????? | | ?????????????????????????????????????????????????? | | ?????????????????????????????????????????????????? | | ?????????????????????????????????????????????????? | | ?????????????????????????????????????????????????? | | ?????????????????????????????????????????????????? | | ?????????????????????????????????????????????????? | | ?????????????????????????????????????????????????? | | ?????????????????????????????????????????????????? | | ?????????????????????????????????????????????????? | | ?????????????????????????????????????????????????? | | ?????????????????????????????????????????????????? | | ?????????????????????????????????????????????????? | | ?????????????????????????????????????????????????? | | ???????????????????????????##????????????????????? | | ?????????????????????????## ????????????????????? | | ????????????????????????? ????????????????????? | | ??????###???????????????? ?????????????????????? | | ?????## ##??????????????# ?????????????????????? | | ?????? #??????????????# #?????##??????????????? | | ?????? #??????????????# #????? #??????????????? | | ??????? #?????###???#### #???? #??????????????? | | ?###??? #????## ##?## @ #??? "#??????????????? | | ?# #??# ##???# ### blg#### "#??????????????? | | ?# ### ##### "# g=Y# / "#??????????????? | | ?# "# "" #;## % #??????????????????? | | ?# #### ##### #????????????? | | %## #### #????????????? | | % ### ####????????????? | | ! !* ## ### ##???????????????? | | * !% #??##????????????????? | | "# #????????????????????? | | "" ######????????????????????? | | "### ### ## ##????????????????????????? | | ????## #### ## #????????????????????????? | | ?????# #?## ## #???# ??????????????????? | | ?????# #??# ## #?## ????????????????? | | ?????## #??# ##? ????????????????? | | ??????## #??## ##?# ????????????????? | | ???????# #???## ### ##?# ????????????????? | | ???????# ####?###?####?? ?????????????????? | | ???????# #?????????## ???????????????????? | | ???????####" #???####### ?????????????????????? | | ??????????## #??## ## #??????????????????????? | | ??????????## #### ## #???????????????????????? | | ??????????# ## ##??????????????????????? | | ??????????# #??????????????????????? | +----------------------------------------------------+ Best States ------------- Heat Dissipation 61 Energy Generation 25 Energy Capacity 470 Matter Stores 310 Matter Capacity 500 Sight Range 16 Robot Scan Range 13 Terrain Scan Range 14 Terrain Scan Density 110 Armor Coverage 225 Resistance: KI 20 Resistance: TH 20 Resistance: EX 45 Resistance: EM 20 Resistance: I 20 Resistance: S 20 Resistance: P 20 Core Shielding 20 Power Shielding 66 Propulsion Shielding 66 Evasion (%) 40 Offensive Hacking 10 Item Schematics ----------------- Lgt. Armor Plating | -9/Materials | Scanalyzed Robot Schematics ------------------ None Fabricated ------------ Nothing Alien Tech Used ----------------- None Achievements -------------- Just Browsing The More The Merrier Challenges ------------ None Game ------ Seed StealthRagnarokDissipator Manual? 0 Play Time 00:56:36 Cumulative 19.0 hours Start 2022.01.27 @ 01:22:15 End 2022.01.27 @ 02:18:57 Sessions 1 Manual Loads 0 Difficulty Adventurer Special Mode None Game No. 38 Rogue 19 Adventurer 19 Explorer 0 Win Type - Total 0 Types 0/0/0/0/0/0/0/0/0 Lore% 12 Gallery% 25 Achievement% 19 Wizard Run 0 Options --------- ASCII 0 Keyboard 0 Movement Mouse Keybinds 0 Fullscreen 1 Font 18/SmallcapsGlow Map View 76x50 Tactical HUD 1 Map Filters NONE Filters NONE Steam 1 RUN: 2bcedca7-42c1-4665-a5b9-385b397eed42